{"text_format":"3","workbook":"xlsx","n_sheets":2,"sheets":["Проследяване \"моля, отговорете\"","Резюме \"моля, отговорете\""],"not_rendered":{"charts":2,"defined_names":22},"read":"whole","date_system":"1900"}

{"sheet":"Проследяване \"моля, отговорете\"","index":0,"n_rows":15,"n_cols":15,"rows_kept":15,"merged":[[0,3,0,4],[0,5,0,7]]}
[{"$nulls":5},"РЕЗЮМЕ ЗА \"МОЛЯ, ОТОГОВОРЕТЕ\""]
[null,"ДАТА НА СВАТБАТА",null,"проследяване на покани за сватба"]
[null,{"$f":"TODAY()+283","v":"2023-05-19"},null,"ИМЕ НА ГОСТА","ИЗПРАТЕНА?","МОЛЯ, ОТГОВОРЕТЕ","КОМПАНИЯ","ГОСТ","ВРЪЗКА","АДРЕС","ГРАД","ОБЛАСТ","ПОЩЕНСКИ КОД","ТЕЛЕФОН","ИМЕЙЛ ЗА ВРЪЗКА"]
[null,"ОСТАВАЩИ ДНИ",null,"Име 1","Да","Да",1,"Булка","Брат","Адрес","Град","Област","Пощенски код","Телефон","ime@example.com"]
[null,{"$f":"ОставащиДни","v":283},null,"Име 2","Да","Не",3,"Булка","Приятел","Адрес","Град","Област","Пощенски код","Телефон","ime@example.com"]
[null,"ЩЕ ДОЙДАТ",null,"Име 3","Да","Да",1,"Друг","Приятел","Адрес","Град","Област","Пощенски код","Телефон","ime@example.com"]
[null,{"$f":"ОбщоЩеДойдат","v":12},null,"Име 4","Да","Не",2,"Младоженец","Приятел","Адрес","Град","Област","Пощенски код","Телефон","ime@example.com"]
[null,"НЯМА ДА ДОЙДАТ",null,"Име 5","Да","Да",2,"Младоженец","Приятел","Адрес","Град","Област","Пощенски код","Телефон","ime@example.com"]
[null,{"$f":"ОбщоНямаДаДойдат","v":6},null,"Име 6","Да","Под въпрос",null,"Друг","Приятел","Адрес","Град","Област","Пощенски код","Телефон","ime@example.com"]
[null,"НЕОТГОВОРИЛИ",null,"Име 7","Да","Да",2,"Младоженец","Приятел","Адрес","Град","Област","Пощенски код","Телефон","ime@example.com"]
[null,{"$f":"НеотговорилиМоляОтговорете","v":1},null,"Име 8","Да","Не",1,"Друг","Приятел","Адрес","Град","Област","Пощенски код","Телефон","ime@example.com"]
[{"$nulls":3},"Име 9","Да","Да",4,"Булка","Приятел","Адрес","Град","Област","Пощенски код","Телефон","ime@example.com"]
[{"$nulls":3},"Име 10","Да","Да",2,"Булка","Приятел","Адрес","Град","Област","Пощенски код","Телефон","ime@example.com"]
[{"$nulls":3},"Име 11","Да",null,null,"Младоженец","Брат","Адрес","Град","Област","Пощенски код","Телефон","ime@example.com"]
[{"$nulls":3},"ОБЩО:",{"$f":"COUNTIF('Проследяване \"моля, отговорете\"'!$E$4:$E$14,\"Да\")","v":11},{"$f":"COUNTA('Проследяване \"моля, отговорете\"'!$F$4:$F$14)","v":10},{"$f":"SUBTOTAL(109,тблПоканени[КОМПАНИЯ])","v":18}]

{"sheet":"Резюме \"моля, отговорете\"","index":1,"n_rows":11,"n_cols":15,"rows_kept":11,"merged":[[0,3,0,4],[0,5,0,8],[2,3,6,3],[2,4,6,4],[7,3,11,3],[7,4,11,4]]}
[{"$nulls":3},"ПРОСЛЕДЯВАНЕ НА \n\"МОЛЯ, ОТГОВОРЕТЕ\""]
[null,"ДАТА НА СВАТБАТА",null,"резюме за \"моля, отговорете\"",{"$nulls":10},"бележки"]
[null,{"$f":"ДатаНаСватбата","v":"2023-05-19"},null,"ДА","В тази клетка се намира стълбовидна диаграма с клъстери, показваща типовете гости с положителен отговор на \"моля, отговорете\"."]
[null,"ОСТАВАЩИ ДНИ",{"$nulls":3},"ДРУГ",{"$f":"IFERROR(SUMIFS(тблПоканени[КОМПАНИЯ],тблПоканени[ГОСТ],\"=Друг\",тблПоканени[МОЛЯ, ОТГОВОРЕТЕ],\"Да\"),0)","v":1},{"$f":"тблПоканени[[#Totals],[ИЗПРАТЕНА?]]","v":11}]
[null,{"$f":"ОставащиДни","v":283},{"$nulls":3},"МЛАДОЖЕНЕЦ",{"$f":"IFERROR(SUMIFS(тблПоканени[КОМПАНИЯ],тблПоканени[ГОСТ],\"=Младоженец\",тблПоканени[МОЛЯ, ОТГОВОРЕТЕ],\"Да\"),0)","v":4},{"$f":"тблПоканени[[#Totals],[ИЗПРАТЕНА?]]","v":11}]
[null,"ЩЕ ДОЙДАТ",{"$nulls":3},"БУЛКА",{"$f":"IFERROR(SUMIFS(тблПоканени[КОМПАНИЯ],тблПоканени[ГОСТ],\"=Булка\",тблПоканени[МОЛЯ, ОТГОВОРЕТЕ],\"Да\"),0)","v":7},{"$f":"тблПоканени[[#Totals],[ИЗПРАТЕНА?]]","v":11}]
[null,{"$f":"ОбщоЩеДойдат","v":12}]
[null,"НЯМА ДА ДОЙДАТ",null,"НЕ","В тази клетка се намира стълбовидна диаграма с клъстери, показваща типовете гости с отрицателен отговор на \"моля, отговорете\"."]
[null,{"$f":"ОбщоНямаДаДойдат","v":6},{"$nulls":3},"ДРУГ",{"$f":"IFERROR(SUMIFS(тблПоканени[КОМПАНИЯ],тблПоканени[ГОСТ],\"=Друг\",тблПоканени[МОЛЯ, ОТГОВОРЕТЕ],\"Не\"),0)","v":1},{"$f":"тблПоканени[[#Totals],[ИЗПРАТЕНА?]]","v":11}]
[null,"НЕОТГОВОРИЛИ",{"$nulls":3},"МЛАДОЖЕНЕЦ",{"$f":"IFERROR(SUMIFS(тблПоканени[КОМПАНИЯ],тблПоканени[ГОСТ],\"=Младоженец\",тблПоканени[МОЛЯ, ОТГОВОРЕТЕ],\"Не\"),0)","v":2},{"$f":"тблПоканени[[#Totals],[ИЗПРАТЕНА?]]","v":11}]
[null,{"$f":"НеотговорилиМоляОтговорете","v":1},{"$nulls":3},"БУЛКА",{"$f":"IFERROR(SUMIFS(тблПоканени[КОМПАНИЯ],тблПоканени[ГОСТ],\"=Булка\",тблПоканени[МОЛЯ, ОТГОВОРЕТЕ],\"Не\"),0)","v":3},{"$f":"тблПоканени[[#Totals],[ИЗПРАТЕНА?]]","v":11}]